Cogmind - Beta 11 @@@ ROGUE MODE // 2022.03.27 @ 21:45:45 Player: wildgoose Result: Destroyed by G-34 Mercenary with Small Laser Performance ------------- Evolutions (1) 500 Regions Visited (2) 400 Robots Destroyed (24) 120 Value Destroyed (609) 609 Prototype IDs (0) 0 Alien Tech Used (0) 0 Bonus (16) 16 TOTAL SCORE: 1645 Bonus ------- High Alert Combat Kills 16 Cogmind --------- Core Integrity 0/400 Matter 300/300 Energy 98/100 System Corruption 7% Temperature Cool (6) Movement Core (50) Location -9/Materials Parts ------- > --- POWER (2) -------- (None) > --- PROPULSION (2) --- (None) > --- UTILITY (3) ------ (None) > --- WEAPON (2) ------- (None) > --- INVENTORY (5) ---- Light Ion Engine Light Treads Light Treads Peak State ------------ > --- POWER ------------ Ion Engine Light Ion Engine > --- PROPULSION ------- Light Treads Light Treads > --- UTILITY ---------- Large Matter Pod Medium Armor Plating > --- WEAPON ----------- EM Pulse Gun EM Shotgun > --- INVENTORY -------- Light Ion Engine Light Treads Flight Unit Assault Rifle [Rating: 10] Favorites ----------- Power Ion Engine Engine Ion Engine Propulsion Light Treads Treads Light Treads Leg Aluminum Leg Flight Unit Flight Unit Utility Large Matter Pod Storage Large Matter Pod Processor Targeting Computer Protection Medium Armor Plating Weapon EM Pulse Gun Energy Gun EM Pulse Gun Ballistic Gun Assault Rifle Launcher Grenade Launcher Build | -11 -10 -9 ------- Run | Scr Mat Mat Slots Evolved 2 | . . 2 Power 1 | . . 1 Propulsion . | . . . Utility 1 | . . 1 Weapon . | . . . Parts Attached 25 | 5 9 11 Power 4 | 1 1 2 Engine 4 | 1 1 2 Core . | . . . Reactor . | . . . Propulsion 8 | 2 . 6 Treads 4 | 2 . 2 Leg 3 | . . 3 Wheel . | . . . Hover . | . . . Flight 1 | . . 1 Utility 6 | . 6 . Device . | . . . Storage 4 | . 4 . Processor 1 | . 1 . Hackware . | . . . Protection 1 | . 1 . Artifact . | . . . Weapon 7 | 2 2 3 Energy Gun 4 | 1 1 2 Energy Cannon . | . . . Ballistic Gun 2 | 1 . 1 Ballistic Cannon . | . . . Launcher 1 | . 1 . Special Weapon . | . . . Impact Weapon . | . . . Slashing Weapon . | . . . Piercing Weapon . | . . . Special Melee Weapon . | . . . Unidentified Prototypes . | . . . Corrupted Parts 1 | . . 1 System Corruption 2 | . . 2 Parts Lost 8 | . . 8 Power 1 | . . 1 Propulsion 2 | . . 2 Utility 2 | . . 2 Weapon 3 | . . 3 Highest Loss Streak 7 | . . 7 To Critical Strikes . | . . . Average Slot Usage (%) 86 | . 93 80 Engine 16 | . 14 17 Treads 20 | . 28 13 Leg 4 | . . 7 Storage 14 | . 18 10 Processor 1 | . 2 . Protection 5 | . . 10 Energy Gun 12 | . 14 10 Ballistic Gun 7 | . 10 4 Launcher 4 | . 3 5 Naked Turns 13 | . . 13 Heaviest Build 33 | 7 33 23 Greatest Support 40 | 40 40 40 Greatest Overweight (x) 1 | . . 1 Average Overweight (x) . | . . . Largest Inventory Capacity 15 | 5 15 5 Average Capacity 7 | 5 10 5 Most Carried 5 | 5 5 5 Average Carried 3 | 3 3 3 Final Capacity 5 | 5 5 5 Final Carried 4 | 4 3 3 Class Distribution -------------------- 91% | Mutant 8% | Scavenger-Mutant Dominant Class ---------------- Mutant | -10/Materials Mutant | -9/Materials Resources | -11 -10 -9 ----------- Run | Scr Mat Mat Matter Collected 616 | 250 45 321 Remotely . | . . . Salvage Created 594 | . 145 449 Parts 56 | . 16 40 Haulers Intercepted . | . . . Recyclers Shooed 1 | . . 1 Parts Field Recycled . | . . . Retrieved Matter . | . . . Parts Self-Destructed . | . . . Prevented . | . . . Kills | -11 -10 -9 ------- Run | Scr Mat Mat Combat Hostiles Destroyed 17 | . 5 12 Guns 6 | . 2 4 AOE 10 | . 3 7 Classes Destroyed 6 | . 3 3 Builder 3 | . . 3 Watcher 4 | . 3 1 Swarmer 3 | . 1 2 Grunt 12 | . 4 8 Duelist 1 | . . 1 Sentry 1 | . . 1 Best Kill Streak 5 | . 5 4 Combat Bots Only 4 | . 4 3 Max Kills in Single Turn 2 | . 2 2 Gunslinging . | . . . Exploded 2 | . 2 2 Melee . | . . . Uniques/NPCs Destroyed . | . . . Combat | -11 -10 -9 -------- Run | Scr Mat Mat Damage Taken 1311 | . 150 1161 Core 415 | . 7 408 Absorbed by Shields . | . . . Core Remaining (%) 98 | 100 97 . Volleys Fired 60 | . 13 47 Largest 2 | . 2 2 Hottest 70 | . 70 70 Shots Fired 109 | . 26 83 Gun 97 | . 23 74 Cannon . | . . . Launcher 12 | . 3 9 Special . | . . . Kinetic 37 | . 10 27 Thermal 19 | . . 19 Explosive 12 | . 3 9 Electromagnetic 41 | . 13 28 Robot Hit Streak 9 | . 5 9 Robot Miss Streak 7 | . 2 7 Penetration Max . | . . . Secondary Targets 1 | . 1 . Max Gunslinging Chain 1 | . 1 . Shots Hit Robots 64 | . 16 48 Core Hits 41 | . 9 32 Critical Kills . | . . . Critical Parts Destroyed . | . . . Critical Strikes 1 | . 1 . Corrupt 1 | . 1 . Melee Attacks . | . . . Impact . | . . . Slashing . | . . . Piercing . | . . . Sneak Attacks . | . . . Combat Hostiles . | . . . Follow-up Attacks . | . . . Damage Inflicted 1809 | . 568 1241 Guns 827 | . 212 615 Cannons . | . . . Explosions 949 | . 356 593 Melee . | . . . Ramming 33 | . . 33 Kinetic 302 | . 76 226 Thermal 192 | . 73 119 Explosive 876 | . 283 593 Electromagnetic 406 | . 136 270 Impact . | . . . Slashing . | . . . Piercing . | . . . Highest Corruption 7 | . . 7 Average Corruption 2 | . . 2 Corruption Purged . | . . . Corruption Blocked . | . . . Effects 1 | . . 1 Energy Discharges 1 | . . 1 Overload Shots . | . . . Overflow Damage 29 | . 24 5 Projectiles . | . . . Explosions 29 | . 24 5 Melee . | . . . Knockbacks 1 | . . 1 Impact 1 | . . 1 Kinetic . | . . . Secondary . | . . . Self-Inflicted Damage 110 | . 2 108 Shots 5 | . 1 4 Rammed 12 | . . 12 Targets Rammed 13 | . . 13 Kicked 1 | . . 1 Crushed . | . . . Highest Temperature 174 | . 61 174 Average Temperature 65 | . 31 72 Received Heat Transfer 372 | . 72 300 Siege Activations . | . . . Robots Corrupted . | . . . Combat Hostiles . | . . . Parts Fried 3 | . . 3 Impact Corruptions 1 | . . 1 Robots Melted . | . . . Combat Hostiles . | . . . Parts Melted 1 | . 1 . Heat Transferred 325 | . 50 275 Parts Sabotaged . | . . . Parts Stolen . | . . . Parts Stripped . | . . . Power Chain Reactions 2 | . 2 . Missiles Intercepted . | . . . Alert | -11 -10 -9 ------- Run | Scr Mat Mat Peak Influence 473 | . 285 473 Initial 35 | . . 35 Average 153 | . 71 263 Maximum Alert Level 2 | . 1 2 Low Security (%) 60 | 100 79 33 Level 1 26 | . 20 39 Level 2 12 | . . 27 Level 3 . | . . . Level 4 . | . . . Level 5 . | . . . High Security . | . . . Max Security . | . . . Squads Dispatched 5 | . 2 3 Investigation 2 | . . 2 Extermination . | . . . Reinforcement 3 | . 2 1 Assault . | . . . Garrison . | . . . Intercept . | . . . Searches Triggered . | . . . Construction Impeded 1 | . . 1 Haulers Reinforced . | . . . Active Scanning Responses . | . . . Cargo Convoy Interrupts . | . . . Stealth | -11 -10 -9 --------- Run | Scr Mat Mat Distress Signals 4 | . 2 2 Communications Jammed . | . . . Distress Signals . | . . . Times Spotted 31 | . 15 16 Peak Tracking Total 6 | . 6 4 Tactical Retreats 3 | . 2 1 Traps | -11 -10 -9 ------- Run | Scr Mat Mat Traps Triggered 1 | . . 1 Indirectly . | . . . Trap Hack Attempts . | . . . Triggered . | . . . Disarmed . | . . . Reprogrammed . | . . . Reused . | . . . Traps Extracted . | . . . Installed . | . . . Triggered . | . . . Machines | -11 -10 -9 ---------- Run | Scr Mat Mat Machines Disabled . | . . . Max in Single Turn . | . . . Machines Sabotaged . | . . . Garrisons Compromised . | . . . Overloaded Fab Kills . | . . . Hacking | -11 -10 -9 --------- Run | Scr Mat Mat Machines Accessed 2 | . 1 1 Terminals 1 | . . 1 Fabricators . | . . . Repair Stations . | . . . Recycling Units 1 | . 1 . Scanalyzers . | . . . Garrison Access . | . . . Total Hacks 9 | . 4 5 Successful 6 | . 4 2 Failed 3 | . . 3 Catastrophic . | . . . Database Lockouts . | . . . Manual . | . . . Terminals 5 | . . 5 Fabricators . | . . . Repair Stations . | . . . Recycling Units 4 | . 4 . Scanalyzers . | . . . Garrison Access . | . . . Terminal Hacks 2 | . . 2 Recall Investigation 1 | . . 1 Zone Layout 1 | . . 1 Fabricator Hacks . | . . . Repair Station Hacks . | . . . Recycling Unit Hacks 4 | . 4 . Process 1 | . 1 . Report Inventory 2 | . 2 . Retrieve Components 1 | . 1 . Scanalyzer . | . . . Garrison Access Hacks . | . . . Unauthorized Hacks . | . . . Terminals . | . . . Fabricators . | . . . Repair Stations . | . . . Recycling Units . | . . . Scanalyzers . | . . . Garrison Access . | . . . Data Cores Recovered . | . . . Used . | . . . Hacking Detections 1 | . . 1 Full Trace Events 1 | . . 1 Feedback Events . | . . . Feedback Blocked . | . . . Robot Schematics Acquired . | . . . Robots Built . | . . . Authchips . | . . . Time . | . . . Total Robot Build Rating . | . . . Part Schematics Acquired . | . . . Parts Built . | . . . Authchips . | . . . Time . | . . . Total Part Build Rating . | . . . Parts Repaired . | . . . Time . | . . . Parts Recycled . | . . . Recycled Matter 6 | . 6 . Retrieved Matter . | . . . Retrieved Components . | . . . Parts Scanalyzed . | . . . Part Schematics Acquired . | . . . Parts Damaged . | . . . Bothacking | -11 -10 -9 ------------ Run | Scr Mat Mat Used RIF Installer . | . . . Robots Hacked . | . . . Non-combat . | . . . Combat . | . . . Robot Hacks Applied . | . . . Relay Couplers Released . | . . . Fabnet Peak Effective % . | . . . Robots Rewired . | . . . Allies Hacked . | . . . Hacks Repelled . | . . . Allies | -11 -10 -9 -------- Run | Scr Mat Mat Total Allies . | . . . Largest Group . | . . . Highest-Rated Group . | . . . Highest-Rated Ally . | . . . Total Orders . | . . . Ally Attacks . | . . . Total Damage . | . . . Kills . | . . . Allies Corrupted . | . . . Allies Melted . | . . . Intel | -11 -10 -9 ------- Run | Scr Mat Mat Robot Analysis Total . | . . . Derelict Logs Recovered . | . . . Drone Launches . | . . . Drone Recoveries . | . . . Exploration | -11 -10 -9 ------------- Run | Scr Mat Mat Turns Passed 1017 | 129 407 481 Spaces Moved 485 | 89 211 185 Core 32 | 24 . 8 Treads 411 | 65 211 135 Legs 42 | . . 42 Wheels . | . . . Hover . | . . . Flight . | . . . Fastest Speed 50 | 50 160 50 Average Speed 155 | 130 160 162 Slowest Speed 240 | 160 160 240 Overloaded Moves . | . . . Propulsion Burnouts . | . . . Robots Hopped . | . . . Cave-ins Triggered . | . . . Exploration Rate (%) 16 | 4 32 14 Regions Visited 2 Branch Regions . Pre-discovered Areas . | . . . Known Exits Taken . | . . . Unknown Exits Taken 2 | 1 1 . Scrap Searched . | . . . Spaces Dug . | . . . Terrain Destroyed 83 | . 26 57 Melee . | . . . Projectile . | . . . AOE 83 | . 26 57 Terrain Rammed . | . . . Walls Destroyed . | . . . Machines Disabled . | . . . Actions | -11 -10 -9 --------- Run | Scr Mat Mat Total 645 | 102 256 287 Wait 15 | . 8 7 Move 483 | 88 210 185 Hop . | . . . Pick Up 30 | 9 8 13 Fast Attach 1 | . 1 . Attach 18 | 5 4 9 Detach 1 | . 1 . Swap 6 | . 4 2 Drop 18 | . 7 11 Fire 60 | . 13 47 Melee . | . . . Ram 11 | . . 11 Kick 1 | . . 1 Crush 1 | . . 1 Escape Stasis . | . . . Rewire . | . . . Trap . | . . . Miscellaneous . | . . . Route ------- -11/Scrapyard -10/Materials -9/Materials History --------- Turn | Location | Event 14 | -11/Scrapyard | Discovered new exit (range 14) 130 | -11/Scrapyard | Entered Materials 317 | -10/Materials | Build established: Mutant 488 | -10/Materials | Discovered new exit (range 13) 537 | -10/Materials | Entered another Materials area 537 | -9/Materials | Evolved 2 slots: Power x1, Utility x1 996 | -9/Materials | Core integrity fell below 50% 1007 | -9/Materials | Core integrity fell below 20% 1018 | -9/Materials | Destroyed by G-34 Mercenary with Small Laser Last Messages --------------- Lgt. Ion Engine destroyed. Kicked L-31 Rogue out of the way. Lgt. Ion Engine severed. Assault Rifle destroyed. Aluminum Leg destroyed. Sml. Laser destroyed. Slammed into L-31 Rogue. Lrg. Matter Pod destroyed. System corrupted by crushing effect (+3). Destabilizing: System corrupted (+2). Slammed into L-31 Rogue. Destroyed Melee Analysis Suite. L-31 Rogue system corrupted by crushing effect. L-31 Rogue system terminally corrupted. Core Shielding fried. Katana fried. Acquired 60 matter. Slammed into G-34 Mercenary. G-34 Mercenary knocked back. Slammed into G-34 Mercenary. Map ----- +----------------------------------------------------+ | ??????????????????????????????????? | | ??????????????????????????????????? | | ??????????????????????????????????? | | ??????????????????????????????????? | | ??????????????????????????????????? | | ??????????????????????????????????? | | ??????????????????????????????????? | | ????????????????????????? ???????? | | ????????????????????????? ???????? | | ????????????????????????? #?????? | | ????????????????????????? #?????? | | ????????????????????????? #?????? | | ???????????????????????## ##????? | | ???????????????????????? #????? | | ???????????????????????? #????? | | ???????????????????????? T #????? | | ???????????????????????? #????? | | ???????????????????????? ?????? | | ????????????????????????# ! #?????? | | ????????????????????????#[%=#?????? | | ????????????????????????# +?????? | | ????????????????????????# #?????? | | ????????????????????????#%= #?????? | | ????????????????????????#%g #?????? | | ????????????????????????#% #?????? | | ????????????????????????#@* #?????? | | ????????????????????????#% #?????? | | ???????????????????????##% ##????? | | ?????????????????#?????# #????? | | ?????????????##### ##### #????? | | ?????? T #????? | | ?????????????######## ## #????? | | ????????????????????# ## #????? | | ??????????########?## ########????? | | ??????????# #### # #??#????? | | ??????????# ####[######## #??? | | ??????????# """ + =!=*! #??? | | ??????????# """ # =##########??? | | ??????????# """ # !# ###??????? | | ??????????# # =# #????????? | | ??????????###### # [ # ##????????? | | ??????????????# # * # ##????????? | | ??????????######## ###?????????? | | ??????????# % # #???????????? | | ?????????## % # ##########??? | | ?????????# * + #??? | | ?????????## #### #??? | | ??????????# "T" ## # #??? | | ??????????# ## # #??? | | ??????????####+#### #+##########??? | +----------------------------------------------------+ Best States ------------- Heat Dissipation 28 Energy Generation 15 Energy Capacity 275 Matter Stores 300 Matter Capacity 450 Sight Range 16 Terrain Scan Density 10 Armor Coverage 225 Evasion (%) 50 Targeting Accuracy 5 Recoil Reduction 2 Item Schematics ----------------- None Robot Schematics ------------------ None Fabricated ------------ Nothing Alien Tech Used ----------------- None Achievements -------------- None Challenges ------------ None Game ------ Seed ReactionDimensionalMatrix Manual? 0 Play Time 00:21:01 Cumulative 7.2 hours Start 2022.03.27 @ 21:26:46 End 2022.03.27 @ 21:45:45 Sessions 1 Manual Loads 0 Difficulty Rogue Special Mode None Game No. 18 Rogue 18 Adventurer 0 Explorer 0 Win Type - Total 0 Types 0/0/0/0/0/0/0/0/0 Lore% 3 Gallery% 12 Achievement% 10 Wizard Run 0 Options --------- ASCII 0 Keyboard 0 Movement Arrows Keybinds 0 Fullscreen 1 Font 18/SmallcapsGlow Map View 76x50 Tactical HUD 0 Map Filters NONE Filters NONE Steam 1 RUN: bb88bbc1-61ad-43e8-b5e9-dd2423dcf818